bitfinex-derivatives/quotes_BTCF0:USTF0_20240820
["timestamp","ask_amount","ask_price","bid_price","bid_amount"]
[1724173387489,0.012,58765.0,58764.0,0.430853]
[1724173387692,0.012,58765.0,58764.0,0.498906]
[1724173388000,0.012,58765.0,58764.0,0.566959]
[1724173388288,0.428839,58776.0,58764.0,0.566959]
[1724173388289,0.3608,58776.0,58775.0,0.06804]
[1724173388494,0.0463,58785.0,58780.0,0.068034]
[1724173388684,0.01035091,58783.0,58780.0,0.428834]
[1724173389082,0.01035091,58783.0,58780.0,4.198834]
[1724173391187,0.0466,58793.0,58780.0,5.04116]
[1724173391489,0.3608,58797.0,58792.0,0.06802]
[1724173391490,0.068016,58796.0,58792.0,0.06802]
[1724173391685,0.068019,58794.0,58792.0,0.06802]
[1724173391890,0.068019,58793.0,58792.0,0.06802]
[1724173392091,0.136033,58796.0,58792.0,0.06802]
[1724173392292,0.07808892,58795.0,58793.0,0.068018]
[1724173392482,0.068017,58795.0,58793.0,0.068018]
[1724173392794,0.069017,58795.0,58792.0,0.001]
[1724173393095,0.069017,58795.0,58794.0,0.068018]
[1724173393597,0.001,58795.0,58794.0,0.428818]
[1724173393895,0.001,58795.0,58794.0,0.782018]
[1724173394282,0.00025513,58798.0,58797.0,0.068014]
[1724173394790,0.00025513,58798.0,58793.0,0.001]
[1724173394791,0.068016,58796.0,58793.0,0.001]
[1724173394991,0.00025513,58798.0,58796.0,0.068015]
[1724173395192,0.00025513,58798.0,58797.0,0.428814]
[1724173395584,0.00025513,58798.0,58797.0,4.198814]
[1724173395783,0.00025513,58798.0,58797.0,4.199814]
[1724173397295,0.00025513,58798.0,58797.0,4.200814]
[1724173398293,0.3254,58811.0,58804.0,0.068005]
[1724173398294,0.068004,58806.0,58804.0,0.068005]
[1724173398493,0.068004,58806.0,58805.0,0.068004]
[1724173398895,0.068,58810.0,58809.0,0.068]
[1724173399101,0.3608,58814.0,58812.0,0.067997]
[1724173399392,0.37089738,58814.0,58812.0,0.067997]
[1724173399593,0.07809238,58814.0,58813.0,0.3608]
[1724173399902,0.01009738,58814.0,58813.0,0.428796]
[1724173400098,0.00025513,58819.0,58814.0,0.067995]
[1724173400287,0.00025513,58819.0,58813.0,0.3608]
[1724173400288,0.067998,58812.0,58811.0,0.067997]
[1724173400600,0.00025513,58819.0,58807.0,0.06825713]
[1724173400601,0.068002,58808.0,58807.0,0.06825713]
[1724173401196,0.428802,58808.0,58807.0,0.00025513]
[1724173401392,0.426802,58808.0,58807.0,0.00025513]
[1724173401593,0.81957353,58808.0,58801.0,0.00789767]
[1724173401794,0.81957353,58808.0,58796.0,4.1308]
[1724173401795,0.3608,58802.0,58796.0,4.1308]
[1724173401992,0.068011,58800.0,58799.0,0.068011]
[1724173402199,0.34577068,58800.0,58799.0,0.068011]
[1724173402701,0.34577068,58800.0,58795.0,0.3532]
[1724173402895,0.27775968,58799.0,58795.0,0.3532]
[1724173403087,0.27775968,58798.0,58797.0,0.068014]
[1724173403493,0.19185098,58798.0,58797.0,0.068014]
[1724173403800,0.58301482,58798.0,58797.0,0.03279522]
[1724173403996,0.51500182,58798.0,58797.0,0.03279522]
[1724173404496,0.2449246,58798.0,58797.0,0.03279522]
[1724173404687,0.2449246,58798.0,58797.0,0.03479522]
[1724173405294,0.2479246,58798.0,58797.0,0.03379522]
[1724173405609,0.24993002,58798.0,58797.0,0.03279522]
[1724173406594,0.16402132,58798.0,58797.0,0.03279522]
[1724173406794,0.24993002,58798.0,58797.0,0.03279522]
[1724173407192,0.23203432,58798.0,58797.0,0.03279522]
[1724173407796,0.23203432,58798.0,58797.0,0.068014]
[1724173408295,0.068021,58793.0,58792.0,0.068019]
[1724173408500,0.67375102,58793.0,58792.0,0.03644016]
[1724173408804,0.588821,58793.0,58789.0,0.068023]
[1724173408997,0.068025,58788.0,58787.0,0.06828113]
[1724173409296,0.428825,58788.0,58787.0,3.83828113]
[1724173410302,0.427825,58788.0,58787.0,3.83828113]
[1724173410799,0.426825,58788.0,58787.0,3.83828113]
[1724173411001,0.3608,58788.0,58787.0,3.83928113]
[1724173411209,0.01024595,58790.0,58789.0,0.068024]
[1724173411398,0.3608,58793.0,58792.0,0.13604]
[1724173413703,0.37133065,58801.0,58796.0,0.068016]
[1724173414006,0.3608,58801.0,58796.0,0.489232]
[1724173414605,0.3608,58801.0,58800.0,0.068011]
[1724173415405,0.3608,58801.0,58800.0,0.136022]
[1724173415997,0.3608,58801.0,58800.0,3.906022]
[1724173416504,0.3628,58801.0,58800.0,3.906022]
[1724173416900,0.002,58801.0,58800.0,4.777022]
[1724173417113,0.00025513,58806.0,58805.0,0.068005]
[1724173417301,0.00025513,58806.0,58805.0,0.48921]
[1724173418401,0.00725513,58806.0,58805.0,0.49121]
[1724173418601,0.00725513,58806.0,58805.0,0.5419745]
[1724173418804,0.00725513,58806.0,58805.0,0.070005]
[1724173420199,0.3608,58811.0,58810.0,0.067999]
[1724173420399,0.3608,58818.0,58810.0,0.3532]
[1724173420620,0.37087331,58818.0,58810.0,0.3532]
[1724173421305,0.3608,58818.0,58817.0,0.421191]
[1724173421502,0.3608,58818.0,58817.0,0.489182]
[1724173421702,0.3608,58818.0,58817.0,0.421191]
[1724173421903,0.3618,58818.0,58817.0,0.421191]
[1724173422408,0.3618,58818.0,58817.0,4.191191]
[1724173422900,0.2909629,58818.0,58817.0,4.259182]
[1724173423105,0.2909629,58818.0,58817.0,4.191191]
[1724173423711,0.2899629,58818.0,58817.0,4.192191]
[1724173424010,0.2899629,58818.0,58817.0,0.491182]
[1724173424614,0.2899629,58818.0,58817.0,0.423191]
[1724173424911,0.2899629,58818.0,58817.0,0.069991]
[1724173427814,0.3579529,58818.0,58817.0,0.069991]
[1724173428518,0.3579529,58818.0,58817.0,0.068991]
[1724173429104,0.3579529,58818.0,58817.0,0.001]
[1724173429404,0.067996,58813.0,58812.0,0.067997]
[1724173429606,0.428796,58813.0,58812.0,0.067997]
[1724173430511,0.428796,58813.0,58806.0,0.068003]
[1724173430512,0.3608,58813.0,58806.0,0.068003]
[1724173430813,0.47856108,58807.0,58806.0,0.068003]
[1724173431014,0.47856108,58807.0,58800.0,0.04855513]
[1724173431015,0.06801,58801.0,58800.0,0.00025513]
[1724173431204,0.54656054,58801.0,58800.0,0.00025513]
[1724173431403,0.40142399,58801.0,58800.0,0.06826613]
[1724173431611,0.3598,58801.0,58800.0,0.06826613]
[1724173431818,0.3588,58801.0,58800.0,0.06826613]
[1724173432000,0.42681,58801.0,58800.0,0.06826613]
[1724173432516,0.42681,58801.0,58800.0,0.06926613]
[1724173433507,0.43695901,58801.0,58800.0,0.07026613]
[1724173434003,0.43695901,58801.0,58800.0,0.06926613]
[1724173434211,0.43995901,58801.0,58800.0,0.06826613]
[1724173434410,0.37194901,58801.0,58800.0,0.06826613]
[1724173436509,0.36894901,58801.0,58800.0,0.06826613]
[1724173436820,0.37094901,58801.0,58800.0,0.06826613]
[1724173437414,0.36894901,58801.0,58800.0,0.06826613]
[1724173437914,0.3588,58801.0,58800.0,0.06826613]
[1724173438124,0.16196013,58806.0,58805.0,0.068005]
[1724173438324,0.00025513,58806.0,58805.0,0.068005]
[1724173440315,0.42905913,58806.0,58805.0,0.068005]
[1724173440515,0.06801,58803.0,58802.0,0.068008]
[1724173440924,0.1411,58805.0,58800.0,0.00025513]
[1724173440925,0.06801,58801.0,58800.0,0.06826613]
[1724173441121,0.42881,58801.0,58800.0,0.06826613]
[1724173441720,0.59881,58801.0,58800.0,0.06826613]
[1724173441927,0.59881,58801.0,58800.0,0.00025513]
[1724173442224,0.66682,58801.0,58800.0,0.00025513]
[1724173443136,0.068011,58800.0,58790.0,0.068022]
[1724173443321,0.428822,58791.0,58790.0,0.068022]
[1724173443913,0.3608,58791.0,58790.0,0.068022]
[1724173444212,0.068016,58796.0,58795.0,0.068017]
[1724173444415,0.218016,58796.0,58795.0,0.068017]
[1724173444622,0.578816,58796.0,58795.0,0.068017]
[1724173445016,0.58931352,58796.0,58795.0,0.068017]
[1724173445825,0.52129752,58796.0,58795.0,0.068017]
[1724173446822,0.58931352,58796.0,58795.0,0.068017]
[1724173447019,0.59131352,58796.0,58795.0,0.068017]
[1724173449932,0.58931352,58796.0,58795.0,0.068017]
[1724173450118,0.59131352,58796.0,58795.0,0.068017]
[1724173450524,0.59131352,58796.0,58788.0,3.77]
[1724173450525,1.78673752,58796.0,58788.0,3.77]
[1724173450728,0.13605,58788.0,58787.0,0.06820908]
[1724173450918,0.238025,58788.0,58787.0,0.06820908]
[1724173451622,0.237025,58788.0,58787.0,0.06820908]
[1724173453125,0.239025,58788.0,58787.0,0.06820908]
[1724173454027,0.172,58788.0,58787.0,0.06820908]
[1724173454525,0.18235028,58788.0,58787.0,0.06820908]
[1724173454925,0.002,58788.0,58787.0,0.13623508]
[1724173455125,0.002,58788.0,58787.0,0.64655508]
[1724173455126,0.00074486,58788.0,58787.0,0.64655508]
[1724173455326,0.3608,58789.0,58788.0,0.13605]
[1724173455532,0.00025513,58793.0,58792.0,0.13604]
[1724173455719,0.00025513,58793.0,58792.0,0.48924]
[1724173456532,0.00025513,58793.0,58792.0,0.55700737]
[1724173456730,0.00025513,58793.0,58792.0,4.32700737]
[1724173457028,0.00025513,58793.0,58792.0,4.33817365]
[1724173457425,0.00025513,58793.0,58792.0,4.32800737]
[1724173457633,0.00025513,58793.0,58792.0,4.26024]
[1724173457824,0.00025513,58793.0,58792.0,4.26124]
[1724173459529,0.00025513,58793.0,58792.0,3.90804]
[1724173461334,0.00025513,58793.0,58792.0,3.84002]
[1724173461930,0.00025513,58793.0,58792.0,3.90804]
[1724173462530,0.00025513,58793.0,58792.0,3.90704]
[1724173462726,0.00025513,58793.0,58792.0,4.32826]
[1724173463034,0.00025513,58793.0,58792.0,4.41205327]
[1724173463227,0.3608,58808.0,58807.0,0.068003]
[1724173463429,0.067999,58811.0,58807.0,0.05090294]
[1724173463729,0.067999,58811.0,58810.0,0.05090294]
[1724173463934,0.01051129,58811.0,58810.0,0.067999]
[1724173464132,0.56604001,58819.0,58813.0,0.067996]
[1724173464332,0.56629514,58819.0,58813.0,0.067996]
[1724173464941,0.067994,58815.0,58813.0,0.067996]
[1724173465240,0.56629514,58819.0,58810.0,0.05090294]
[1724173465241,0.37098295,58814.0,58810.0,0.05090294]
[1724173465431,0.3608,58811.0,58809.0,0.068]
[1724173466030,0.068,58809.0,58808.0,0.00025513]
[1724173466930,0.3608,58811.0,58808.0,0.00025513]
[1724173466931,0.428798,58811.0,58808.0,0.00025513]
[1724173467134,0.3608,58811.0,58810.0,0.067999]
[1724173467839,0.3608,58811.0,58810.0,3.837999]
[1724173468238,0.3608,58811.0,58810.0,3.886799]
[1724173468540,0.3618,58811.0,58810.0,3.886799]
[1724173469344,0.3618,58811.0,58810.0,3.93770194]
[1724173469536,0.3618,58811.0,58810.0,3.93763636]
[1724173469934,0.3608,58811.0,58810.0,3.93763636]
[1724173470137,0.3608,58811.0,58810.0,3.886799]
[1724173470336,0.3608,58811.0,58810.0,3.93763636]
[1724173471437,0.3608,58811.0,58810.0,3.886799]
[1724173472843,0.3608,58811.0,58810.0,0.067999]
[1724173473347,0.3608,58811.0,58810.0,3.837999]
[1724173473747,0.32565513,58819.0,58818.0,0.06799]
[1724173474039,0.00025513,58819.0,58818.0,0.13598]
[1724173474735,0.00025513,58819.0,58818.0,0.06799]
[1724173475048,0.00025513,58819.0,58818.0,0.06899]
[1724173475233,0.06824413,58819.0,58818.0,0.06899]
[1724173475434,0.067996,58813.0,58812.0,0.11883436]
[1724173475637,0.067999,58810.0,58809.0,0.11876379]
[1724173475837,0.067999,58810.0,58808.0,0.00025513]
[1724173475838,0.068,58809.0,58808.0,0.00025513]
[1724173476140,0.067,58809.0,58808.0,0.00025513]
[1724173477737,0.067,58809.0,58808.0,0.00225513]
[1724173478335,0.068,58809.0,58808.0,0.07025713]
[1724173478947,0.0782491,58809.0,58808.0,0.07025713]
[1724173479344,0.0802491,58809.0,58808.0,0.07025713]
[1724173480943,0.0132491,58809.0,58808.0,0.07025713]
[1724173481145,0.003,58809.0,58808.0,0.13825913]
[1724173481444,0.003,58809.0,58808.0,0.25366113]
[1724173482143,0.003,58809.0,58808.0,0.81454492]
[1724173482945,0.003,58809.0,58808.0,0.81354492]
[1724173483145,0.003,58809.0,58808.0,0.76278113]
[1724173483448,0.002,58809.0,58808.0,0.1880763]
[1724173483644,0.3608,58813.0,58812.0,0.067997]
[1724173484942,0.3618,58813.0,58812.0,0.067997]
[1724173485337,0.429796,58813.0,58812.0,0.067997]
[1724173485846,0.3638,58813.0,58812.0,0.067997]
[1724173486158,0.3638,58813.0,58812.0,0.11881417]
[1724173486445,0.3638,58813.0,58812.0,0.067997]
[1724173486648,0.3618,58813.0,58812.0,0.067997]
[1724173486846,0.3638,58813.0,58812.0,0.067997]
[1724173487345,0.3628,58813.0,58812.0,0.067997]
[1724173487550,0.3638,58813.0,58812.0,0.067997]
[1724173489444,0.3638,58813.0,58812.0,0.25006458]
[1724173489646,0.003,58813.0,58812.0,0.25006458]
[1724173489854,0.003,58813.0,58812.0,0.182194]
[1724173490251,0.00025513,58819.0,58818.0,0.06799]
[1724173490456,0.01058439,58819.0,58818.0,0.06799]
[1724173490653,0.06824413,58819.0,58818.0,0.06799]
[1724173491348,0.28741137,58819.0,58818.0,0.05188328]
[1724173491543,0.64821137,58819.0,58818.0,0.001]
[1724173492356,0.58022237,58819.0,58818.0,0.06899]
[1724173493755,0.58222237,58819.0,58818.0,0.06999]
[1724173493958,0.65021137,58819.0,58818.0,0.002]
[1724173495777,0.58222237,58819.0,58818.0,0.002]
[1724173495970,0.65021137,58819.0,58818.0,0.002]
[1724173496171,0.58222237,58819.0,58818.0,0.002]
[1724173496371,0.58222237,58819.0,58818.0,0.06999]
[1724173496572,0.58222237,58819.0,58818.0,0.12091705]
[1724173496776,0.58222237,58819.0,58818.0,0.11991779]
[1724173496777,0.58022237,58819.0,58818.0,0.11991779]
[1724173496979,0.58222237,58819.0,58818.0,0.06999]
[1724173497480,0.58222237,58819.0,58818.0,0.13781882]
[1724173497673,0.58222237,58819.0,58818.0,0.06999]
[1724173499184,0.37423337,58819.0,58818.0,0.06999]
[1724173499386,0.37423337,58819.0,58818.0,0.13781882]
[1724173499580,0.37423337,58819.0,58818.0,0.20580882]
[1724173499787,0.00325513,58819.0,58818.0,0.13798]
[1724173500170,0.00325513,58819.0,58818.0,3.90798]
[1724173500376,0.00225513,58819.0,58818.0,4.32917]
[1724173500682,0.003,58819.0,58818.0,4.54350471]
[1724173500871,0.3608,58828.0,58827.0,0.06798]
[1724173501071,0.5108,58828.0,58827.0,0.11889784]
[1724173501590,0.5108,58828.0,58827.0,0.11888297]
[1724173501883,0.65708062,58828.0,58827.0,0.05090297]
[1724173502087,0.067982,58825.0,58824.0,0.05090297]
[1724173502384,0.067982,58825.0,58822.0,0.00025513]
[1724173502385,0.135968,58823.0,58822.0,0.00025513]
[1724173502585,0.14,58823.0,58815.0,0.05090297]
[1724173502880,0.428792,58816.0,58815.0,0.11889697]
[1724173503181,0.427792,58816.0,58815.0,0.11889697]
[1724173503375,0.426792,58816.0,58815.0,0.11889697]
[1724173503575,0.426792,58816.0,58815.0,0.067994]
[1724173503772,0.425792,58816.0,58815.0,0.067994]
[1724173503974,0.067994,58815.0,58814.0,0.05091541]
[1724173504181,0.428794,58815.0,58814.0,0.05091541]
[1724173504585,0.067995,58814.0,58813.0,0.05091541]
[1724173504793,0.3608,58815.0,58812.0,0.067997]
[1724173505087,0.067996,58813.0,58812.0,0.067997]
[1724173505479,0.066996,58813.0,58812.0,0.067997]
[1724173506080,0.066998,58811.0,58810.0,0.05117054]
[1724173506385,0.226998,58811.0,58810.0,0.00025513]
[1724173506688,0.067003,58807.0,58806.0,0.05092203]
[1724173506897,0.067003,58807.0,58805.0,0.11892703]
[1724173506898,0.068004,58806.0,58805.0,0.11892703]
[1724173507078,0.3608,58806.0,58803.0,0.05092203]
[1724173507280,0.068006,58804.0,58801.0,0.05092203]
[1724173507485,0.00280705,58803.0,58801.0,0.05092203]
[1724173507780,0.218006,58804.0,58797.0,0.068014]
[1724173507781,0.06801,58801.0,58800.0,0.05092203]
[1724173507986,0.068013,58799.0,58797.0,0.13590445]
[1724173508199,0.00280705,58798.0,58797.0,0.13590445]
[1724173508685,0.068014,58797.0,58796.0,0.05116123]
[1724173508889,0.62776105,58797.0,58796.0,0.00025513]
[1724173509283,0.11752105,58797.0,58796.0,0.00025513]
[1724173509488,0.11652105,58797.0,58796.0,0.00025513]
[1724173509683,0.06982105,58797.0,58796.0,0.00025513]
[1724173509983,0.06982105,58797.0,58796.0,0.06827113]
[1724173510184,0.00280705,58797.0,58796.0,0.06927113]
[1724173510790,0.00280705,58797.0,58796.0,0.07027113]
[1724173511491,0.07082105,58797.0,58796.0,0.07027113]
[1724173511687,0.00280705,58797.0,58796.0,0.07027113]
[1724173512302,0.00280705,58797.0,58796.0,0.12117723]
[1724173512996,0.00280705,58797.0,58796.0,0.07027113]
[1724173513887,0.07082105,58797.0,58796.0,0.07027113]
[1724173514390,0.07082105,58797.0,58796.0,0.00225513]
[1724173516189,0.00280705,58797.0,58796.0,0.07027113]
[1724173517092,0.22082105,58797.0,58796.0,0.00225513]
[1724173517397,0.218014,58797.0,58796.0,0.00225513]
[1724173517599,0.22082137,58797.0,58796.0,0.00225513]
[1724173517782,0.218014,58797.0,58796.0,0.00225513]
[1724173517987,0.22082145,58797.0,58796.0,0.00225513]
[1724173518991,0.28883545,58797.0,58796.0,0.00225513]
[1724173519191,0.068025,58788.0,58787.0,0.00018308]
[1724173519394,0.43163245,58788.0,58787.0,0.00018308]
[1724173520399,0.43163245,58788.0,58787.0,0.00218308]
[1724173521198,0.43163245,58788.0,58787.0,0.07020908]
[1724173521500,0.36360745,58788.0,58787.0,0.07020908]
[1724173521691,0.00280745,58788.0,58787.0,0.07020908]
[1724173521892,0.00025513,58793.0,58792.0,0.06802]
[1724173522103,0.01043542,58793.0,58792.0,0.06802]
[1724173522302,0.00306246,58793.0,58792.0,0.06802]
[1724173523797,0.00306246,58793.0,58792.0,0.06902]
[1724173524002,0.00306246,58793.0,58792.0,0.07002]
[1724173526000,0.00306226,58793.0,58792.0,0.07002]
[1724173530404,0.00306243,58793.0,58792.0,0.07002]
[1724173532596,0.07108143,58793.0,58792.0,0.07002]
[1724173533895,1.20657313,58793.0,58791.0,0.0508888]
[1724173534106,0.13605,58788.0,58787.0,0.00018308]
[1724173534301,0.59163258,58788.0,58787.0,0.00018308]
[1724173534701,0.59163258,58788.0,58787.0,0.0510783]
[1724173534898,0.59163258,58788.0,58787.0,0.1191043]
[1724173535208,0.36260758,58788.0,58787.0,0.06820908]
[1724173535404,0.36160758,58788.0,58787.0,0.20412553]
[1724173535611,0.36160758,58788.0,58787.0,0.13623508]
[1724173535994,0.36160758,58788.0,58787.0,0.13723508]
[1724173536600,0.36160758,58788.0,58787.0,0.06920908]
[1724173537101,0.36160758,58788.0,58787.0,0.07020908]
[1724173538301,0.42963258,58788.0,58787.0,0.07020908]
[1724173538501,0.42963258,58788.0,58787.0,0.13813401]
[1724173540904,0.42963258,58788.0,58787.0,0.07020908]
[1724173541609,0.426825,58788.0,58787.0,0.07020908]
[1724173541817,0.42963258,58788.0,58787.0,0.07020908]
[1724173542604,0.42963258,58788.0,58787.0,0.138137]
[1724173543513,0.42963258,58788.0,58787.0,0.07020908]
[1724173544423,0.49765758,58788.0,58787.0,0.07011396]
[1724173544613,0.65765758,58788.0,58787.0,0.05313416]
[1724173544806,0.65765758,58788.0,58787.0,0.0531342]
[1724173545003,0.65765758,58788.0,58787.0,0.00218308]
[1724173545413,0.42963258,58788.0,58787.0,0.07011396]
[1724173545716,0.42963258,58788.0,58787.0,0.00218308]
[1724173545717,0.07083256,58788.0,58787.0,0.00218308]
[1724173546309,0.07083256,58788.0,58787.0,0.07020908]
[1724173548710,0.43163256,58788.0,58787.0,0.07020908]
[1724173549111,0.43163256,58788.0,58787.0,0.13814169]
[1724173549519,0.43163258,58788.0,58787.0,0.07020908]
[1724173549909,0.36360758,58788.0,58787.0,0.07020908]
[1724173551928,0.43163258,58788.0,58787.0,0.07020908]
[1724173553216,0.49965758,58788.0,58787.0,0.00218308]
[1724173553420,0.65965758,58788.0,58787.0,0.00218308]
[1724173554715,0.65965758,58788.0,58787.0,0.07020908]
[1724173557124,0.65965776,58788.0,58787.0,0.12117515]
[1724173557427,0.65965776,58788.0,58787.0,0.07020908]
[1724173558920,0.72768276,58788.0,58787.0,0.00218308]
[1724173559121,1.56997776,58788.0,58787.0,0.05097292]
[1724173559435,0.136052,58787.0,58786.0,0.05097292]
[1724173559621,0.29885976,58787.0,58786.0,0.05097292]
[1724173559816,0.80917976,58787.0,58786.0,0.05097292]
[1724173560021,0.80936284,58787.0,58786.0,0.05097292]
[1724173560428,0.136058,58784.0,58783.0,0.06794835]
[1724173560629,0.27686576,58784.0,58783.0,0.13597935]
[1724173562926,0.27686576,58784.0,58783.0,0.13697935]
[1724173563917,0.20883676,58784.0,58783.0,0.13697935]
[1724173565527,0.206029,58784.0,58783.0,0.13697935]
[1724173565723,0.20883689,58784.0,58783.0,0.13697935]
[1724173565923,0.14280789,58784.0,58783.0,0.13697935]
[1724173566125,0.43133008,58787.0,58786.0,0.068027]
[1724173566327,0.43181787,58787.0,58786.0,0.068027]
[1724173566528,0.57181787,58787.0,58784.0,0.06796369]
[1724173566824,0.136056,58785.0,58784.0,0.06796369]
[1724173567032,0.068029,58784.0,58783.0,0.06896369]
[1724173567325,0.21983679,58784.0,58783.0,0.06796369]
[1724173567534,0.21983679,58784.0,58783.0,3.83796369]
[1724173568124,0.28786588,58784.0,58783.0,3.83796369]
[1724173568427,0.068035,58780.0,58778.0,0.06796812]
[1724173568634,0.068035,58780.0,58778.0,0.05097891]
[1724173568635,0.43164288,58779.0,58778.0,0.05097891]
[1724173568825,0.51360788,58779.0,58776.0,0.11901691]
[1724173569026,0.36360788,58778.0,58776.0,3.88901691]
[1724173569329,0.36360788,58778.0,58776.0,3.838038]
[1724173569330,0.00280837,58777.0,58776.0,3.838038]
[1724173569631,0.068041,58774.0,58773.0,0.13601012]
[1724173569830,0.07084937,58774.0,58773.0,0.068042]
[1724173570028,0.068043,58772.0,58767.0,0.08486307]
[1724173570231,0.068051,58765.0,58763.0,0.068054]
[1724173570429,0.00299176,58764.0,58763.0,0.068054]
[1724173570930,0.00199176,58764.0,58763.0,0.13600457]
[1724173571324,0.00199176,58764.0,58763.0,0.068054]
[1724173572221,0.00199176,58764.0,58763.0,0.11893742]
[1724173572435,0.00199176,58764.0,58763.0,0.64652457]
[1724173572627,0.00199176,58764.0,58763.0,4.48457857]
[1724173572832,0.3608,58768.0,58767.0,0.068049]
[1724173573627,0.3608,58768.0,58767.0,0.114949]
[1724173574421,0.3608,58768.0,58767.0,0.693478]
[1724173574632,0.3608,58777.0,58768.0,0.068048]
[1724173574933,0.3608,58777.0,58776.0,0.068039]
[1724173575327,0.3608,58777.0,58776.0,0.113739]
[1724173575528,0.3608,58777.0,58776.0,3.883739]
[1724173575831,0.3608,58792.0,58777.0,0.5104]
[1724173576134,0.42882,58792.0,58783.0,0.05085425]
[1724173576332,0.42882,58792.0,58784.0,0.14715425]
[1724173576634,0.42882,58792.0,58790.0,0.068022]
[1724173577026,0.068021,58791.0,58790.0,0.068022]
[1724173577433,0.068025,58788.0,58786.0,0.11888025]
[1724173577636,0.3608,58787.0,58786.0,0.068026]
[1724173578123,0.427826,58787.0,58786.0,0.068026]
[1724173578329,0.068027,58786.0,58785.0,0.05110938]
[1724173578528,0.068027,58786.0,58785.0,0.00025513]
[1724173578721,0.067027,58786.0,58785.0,0.00025513]
[1724173579728,0.3598,58787.0,58786.0,0.001]
[1724173579934,0.3658,58787.0,58786.0,0.001]
[1724173580631,0.3658,58787.0,58786.0,0.069027]
[1724173580829,0.3728,58787.0,58786.0,0.070027]
[1724173581028,0.3668,58787.0,58786.0,0.069027]
[1724173581632,0.3668,58787.0,58786.0,0.579347]
[1724173582044,0.3668,58787.0,58786.0,0.647374]
[1724173582339,0.3668,58787.0,58786.0,0.069027]
[1724173582836,0.3738,58787.0,58786.0,0.070027]
[1724173583639,0.3738,58787.0,58786.0,0.648374]
[1724173583839,0.3738,58787.0,58786.0,0.580347]
[1724173584133,0.3738,58787.0,58786.0,0.648374]
[1724173584531,0.014,58787.0,58786.0,1.409174]
[1724173584734,0.0168072,58787.0,58786.0,1.409174]
[1724173585234,0.0168072,58787.0,58786.0,5.179174]
[1724173585623,0.00025513,58797.0,58796.0,0.068016]
[1724173585824,0.00306221,58797.0,58796.0,0.428816]
[1724173586832,0.00306221,58797.0,58796.0,1.835888]
[1724173587035,0.00100021,58797.0,58796.0,1.8462702]
[1724173587232,0.00100021,58797.0,58796.0,5.6162702]
[1724173587636,0.002,58797.0,58796.0,5.6162702]
[1724173588141,0.001,58797.0,58796.0,5.6162702]
[1724173589640,0.00025513,58802.0,58801.0,0.06801]
[1724173589825,0.00025513,58802.0,58801.0,0.42881]
[1724173594939,0.00025513,58802.0,58801.0,0.49682]
[1724173595936,0.00025513,58802.0,58801.0,0.92563]
[1724173596144,0.00025513,58802.0,58801.0,1.43583]
[1724173596442,0.00025513,58802.0,58801.0,1.48655185]
[1724173596633,0.00025513,58802.0,58801.0,1.43583]
[1724173598231,0.00025513,58802.0,58801.0,1.48645137]
[1724173599241,0.00025513,58802.0,58801.0,1.48645062]
[1724173600143,0.00025513,58802.0,58801.0,1.43583]
[1724173600443,0.00025513,58802.0,58801.0,1.50384]
[1724173601739,1.3e-07,58802.0,58801.0,1.50384]
[1724173602038,0.42878,58827.0,58818.0,0.06799]
[1724173602245,0.42878,58827.0,58826.0,0.067981]
[1724173602437,0.44207376,58827.0,58826.0,0.067981]
[1724173602840,0.37409376,58827.0,58826.0,3.837981]
[1724173603046,0.01329376,58827.0,58826.0,3.837981]
[1724173603738,0.01548779,58827.0,58826.0,3.838981]
[1724173603940,0.005,58827.0,58826.0,3.906962]
[1724173604339,0.146,58829.0,58828.0,0.067979]
[1724173604542,0.2573964,58829.0,58828.0,0.428779]
[1724173604843,0.146,58829.0,58828.0,0.428779]
[1724173605041,0.1011264,58831.0,58829.0,0.067977]
[1724173605249,0.00025513,58832.0,58828.0,0.714]
[1724173605250,0.00025513,58832.0,58830.0,0.067976]
[1724173605435,0.00025513,58832.0,58830.0,0.428776]
[1724173605839,0.00025513,58832.0,58831.0,0.067975]
[1724173607242,0.00525513,58832.0,58831.0,0.067975]
[1724173607646,0.00525513,58832.0,58831.0,0.068975]
[1724173607847,0.01025513,58832.0,58831.0,0.068975]
[1724173608542,0.00525513,58832.0,58831.0,0.068975]
[1724173608849,0.01025513,58832.0,58831.0,0.069975]
[1724173609642,0.07822913,58832.0,58831.0,0.069975]
[1724173610748,0.01025513,58832.0,58831.0,0.069975]
[1724173611147,0.01025513,58832.0,58831.0,0.13795]
[1724173611542,0.01025513,58832.0,58831.0,0.205925]
[1724173611943,0.01025513,58832.0,58831.0,1.115845]
[1724173612142,0.01025513,58832.0,58831.0,4.885845]
[1724173612652,1.3e-07,58832.0,58831.0,4.95382]
[1724173613049,1.3e-07,58832.0,58831.0,4.95282]
[1724173613346,0.5377,58851.0,58844.0,0.06796]
[1724173613347,0.01044308,58846.0,58844.0,0.06796]
[1724173613554,0.01044308,58846.0,58845.0,0.067959]
[1724173613858,0.067956,58848.0,58847.0,0.067957]
[1724173614551,0.06820691,58851.0,58850.0,0.067953]
[1724173615350,0.01074421,58851.0,58850.0,0.428753]
[1724173615750,0.01074421,58851.0,58850.0,0.429753]
[1724173616050,0.07869621,58851.0,58850.0,0.429753]
[1724173616246,0.14664821,58851.0,58850.0,3.771]
[1724173616440,0.066955,58848.0,58847.0,0.001]
[1724173616646,0.066955,58848.0,58847.0,0.067957]
[1724173616842,0.07869621,58851.0,58850.0,0.067953]
[1724173617448,0.01074421,58851.0,58850.0,0.067953]
[1724173617638,0.01074421,58851.0,58850.0,0.428753]
[1724173617839,0.00025491,58851.0,58850.0,0.429753]
[1724173618447,0.00125491,58851.0,58850.0,0.430753]
[1724173618945,0.00125491,58851.0,58850.0,0.498706]
[1724173619251,0.00125491,58851.0,58850.0,0.93023794]
[1724173619470,0.07564833,58851.0,58850.0,1.32100142]
[1724173619942,0.07564505,58851.0,58850.0,1.32100142]
[1724173620145,0.00717905,58851.0,58850.0,1.72100142]
[1724173620351,0.18427487,58856.0,58855.0,0.135894]
[1724173620549,0.18427487,58860.0,58859.0,0.135886]
[1724173620851,0.15135902,58864.0,58863.0,0.067938]
[1724173621151,0.15135902,58865.0,58864.0,0.067937]
[1724173621455,0.15139087,58865.0,58864.0,0.067937]